{"text_format":"3","workbook":"xlsx","n_sheets":1,"sheets":["Költségelszámolás"],"not_rendered":{"defined_names":4},"read":"whole","date_system":"1900"}

{"sheet":"Költségelszámolás","index":0,"n_rows":14,"n_cols":14,"rows_kept":14,"merged":[[0,1,0,5],[2,3,2,5],[2,6,2,7],[2,8,2,10],[4,3,4,5],[4,6,4,7],[4,8,4,10]]}
[null,"Utazási költségelszámolás"]
[]
[null,"Név:","Gyenes Izabella","Engedélyezte:",null,null,"Király Vince",null,"Kilométerenkénti költségtérítés:",null,null,{"v":0.32,"d":"0.32 Ft"}]
[]
[null,"Részleg:","Értékesítés","Benyújtás dátuma:",null,null,{"$f":"TODAY()","v":"2018-05-10"},null,"Költségtérítés összesen:",null,null,{"$f":"TeljesMegtérítendőÖsszeg","v":{"v":132030.4424489796,"d":"132,030.44 Ft"}}]
[]
[null,"Időszak:",{"$f":"IF(MIN(B10:B13)=MAX(B10:B13),TEXT(MIN(B10:B13),\"éé.hh.nn.\"),\"Dátumtartomány: \"&TEXT(MIN(B10:B13),\"éé.hh.nn.\")&\" – \"&TEXT(MAX(B10:B13),\"éé.hh.nn.\"))","v":"Dátumtartomány: 18.04.10. – 18.04.15."}]
[]
[null,"Dátum","Költség megnevezése","Repülőjegy","Szállás","Szárazföldi közlekedés \n(üzemanyag, autókölcsönzés, taxi)","Étkezés és borravaló","Konferencia és szeminárium","Megtett távolság (km)","Távolságalapú költségtérítés","Egyéb","Átváltási árfolyam","Pénznem","Összesen"]
[null,{"$f":"TODAY()-30","v":"2018-04-10"},"Utazás az ügyfél telephelyére",{"v":350,"d":"350.00"},{"v":150,"d":"150.00"},{"v":45,"d":"45.00"},{"v":12,"d":"12.00"},{"v":50,"d":"50.00"},{"v":35,"d":"35.00"},{"$f":"IF(Költségelszámolás!I10<>\"\",Költségelszámolás!I10*KmDíj,\"\")","v":{"v":11.200000000000001,"d":"11.20"}},null,{"v":0.0049,"d":"0.005"},"CAD",{"$f":"IFERROR(IF(OR(Költségelszámolás!$L10=\"\",Költségelszámolás!$L10=1),SUM(Költségelszámolás!$J10:$K10,Költségelszámolás!$D10:$H10)*1,SUM(Költségelszámolás!$J10:$K10,Költségelszámolás!$D10:$H10)/Költségelszámolás!$L10),\"\")","v":{"v":126163.26530612246,"d":"126,163.27 Ft"}}]
[null,{"$f":"TODAY()-30","v":"2018-04-10"},"Ebéd az ügyféllel",{"$nulls":3},{"v":24.3,"d":"24.30"},null,{"v":12,"d":"12.00"},{"$f":"IF(Költségelszámolás!I11<>\"\",Költségelszámolás!I11*KmDíj,\"\")","v":3.84},null,{"v":0.0049,"d":"0.005"},"CAD",{"$f":"IFERROR(IF(OR(Költségelszámolás!$L11=\"\",Költségelszámolás!$L11=1),SUM(Költségelszámolás!$J11:$K11,Költségelszámolás!$D11:$H11)*1,SUM(Költségelszámolás!$J11:$K11,Költségelszámolás!$D11:$H11)/Költségelszámolás!$L11),\"\")","v":{"v":5742.857142857143,"d":"5,742.86 Ft"}}]
[null,"2018-04-10","Délutáni szeminárium",{"$nulls":4},{"v":100,"d":"100.00"},{"v":6,"d":"6.00"},{"$f":"IF(Költségelszámolás!I12<>\"\",Költségelszámolás!I12*KmDíj,\"\")","v":1.92},null,{"v":1,"d":"1.000"},"HUF",{"$f":"IFERROR(IF(OR(Költségelszámolás!$L12=\"\",Költségelszámolás!$L12=1),SUM(Költségelszámolás!$J12:$K12,Költségelszámolás!$D12:$H12)*1,SUM(Költségelszámolás!$J12:$K12,Költségelszámolás!$D12:$H12)/Költségelszámolás!$L12),\"\")","v":{"v":101.92,"d":"101.92 Ft"}}]
[null,{"$f":"TODAY()-25","v":"2018-04-15"},"Utazás a repülőtérre",{"$nulls":5},{"v":70,"d":"70.00"},{"$f":"IF(Költségelszámolás!I13<>\"\",Költségelszámolás!I13*KmDíj,\"\")","v":{"v":22.400000000000002,"d":"22.40"}},null,{"v":1,"d":"1.000"},"HUF",{"$f":"IFERROR(IF(OR(Költségelszámolás!$L13=\"\",Költségelszámolás!$L13=1),SUM(Költségelszámolás!$J13:$K13,Költségelszámolás!$D13:$H13)*1,SUM(Költségelszámolás!$J13:$K13,Költségelszámolás!$D13:$H13)/Költségelszámolás!$L13),\"\")","v":{"v":22.400000000000002,"d":"22.40 Ft"}}]
[null,"Összesen",null,{"$f":"SUBTOTAL(109,Költség[Repülőjegy])","v":{"v":350,"d":"350.00"}},{"$f":"SUBTOTAL(109,Költség[Szállás])","v":{"v":150,"d":"150.00"}},{"$f":"SUBTOTAL(109,Költség[Szárazföldi közlekedés \n(üzemanyag, autókölcsönzés, taxi)])","v":{"v":45,"d":"45.00"}},{"$f":"SUBTOTAL(109,Költség[Étkezés és borravaló])","v":{"v":36.3,"d":"36.30"}},{"$f":"SUBTOTAL(109,Költség[Konferencia és szeminárium])","v":{"v":150,"d":"150.00"}},{"$f":"SUBTOTAL(109,Költség[Megtett távolság (km)])","v":{"v":123,"d":"123.00"}},{"$f":"SUBTOTAL(109,Költség[Távolságalapú költségtérítés])","v":39.36},{"$f":"SUBTOTAL(109,Költség[Egyéb])","v":{"v":0,"d":"0.00"}},null,null,{"$f":"SUBTOTAL(109,Költség[Összesen])","v":{"v":132030.4424489796,"d":"132,030.44 Ft"}}]